bitfinex/quotes_SOLUSD_20220210
["timestamp","ask_amount","ask_price","bid_price","bid_amount"]
[1644470847878,13.4501,111.6,111.54,2.08934599]
[1644470848079,34.19671883,111.59,111.54,43.37232498]
[1644470850883,13.4501,111.6,111.54,43.37232498]
[1644470851582,13.4501,111.6,111.54,43.12232498]
[1644470851783,13.4501,111.6,111.54,1.83934599]
[1644470851990,13.4501,111.6,111.54,0.024]
[1644470852183,13.4501,111.6,111.53,0.024]
[1644470852783,43.71465985,111.59,111.53,0.024]
[1644470852982,13.4524,111.58,111.53,0.024]
[1644470853182,13.4524,111.58,111.52,71.30303599]
[1644470853783,13.4524,111.58,111.52,71.55303599]
[1644470854182,50.01459716,111.58,111.52,71.55303599]
[1644470859790,50.01459716,111.58,111.52,71.30303599]
[1644470859988,50.01459716,111.58,111.52,71.55303599]
[1644470860489,13.4524,111.58,111.52,71.55303599]
[1644470861491,53.82386091,111.58,111.52,71.55303599]
[1644470861892,53.82386091,111.58,111.52,58.10173599]
[1644470862495,13.4524,111.58,111.52,58.10173599]
[1644470862696,13.4524,111.58,111.52,57.85173599]
[1644470863699,48.60752281,111.58,111.52,57.85173599]
[1644470865916,13.4524,111.58,111.52,57.85173599]
[1644470866320,13.4524,111.58,111.52,71.55343599]
[1644470867421,7.0,111.61,111.52,73.36878198]
[1644470867623,24.9486,111.63,111.55,13.4481]
[1644470867822,48.9293,111.63,111.55,13.6981]
[1644470868423,13.4481,111.61,111.56,47.63604066]
[1644470868922,14.72594814,111.61,111.56,47.63604066]
[1644470869723,14.72594814,111.61,111.56,61.08374066]
[1644470870224,14.72594814,111.61,111.56,61.33374066]
[1644470871226,13.4481,111.61,111.56,61.33374066]
[1644470872328,14.72474814,111.62,111.56,61.33374066]
[1644470879333,48.9293,111.63,111.56,63.14454983]
[1644470879334,1.27784814,111.63,111.56,63.14454983]
[1644470879533,1.27784814,111.64,111.56,75.60454983]
[1644470879735,1.27784814,111.64,111.57,6.0]
[1644470879935,1.27784814,111.64,111.59,13.4438]
[1644470880435,1.27784814,111.64,111.6,38.94942517]
[1644470880837,14.72194814,111.64,111.6,38.94942517]
[1644470881639,14.72194814,111.64,111.57,23.7577]
[1644470881839,1.27784814,111.63,111.57,23.7577]
[1644470882043,13.4468,111.62,111.58,13.4458]
[1644470882241,13.4468,111.62,111.57,23.7577]
[1644470882440,13.4468,111.62,111.56,0.25]
[1644470882645,14.72464814,111.62,111.56,45.57774034]
[1644470883644,13.4468,111.62,111.56,45.57774034]
[1644470883841,13.4468,111.62,111.57,13.4469]
[1644470884541,13.4468,111.62,111.55,44.8433]
[1644470884542,14.72464814,111.62,111.55,0.024]
[1644470884741,60.04665067,111.63,111.56,13.4483]
[1644470884742,13.4487,111.6,111.56,13.4483]
[1644470884941,13.4487,111.6,111.55,0.024]
[1644470885345,35.00770742,111.59,111.55,0.024]
[1644470885542,35.00770742,111.59,111.53,40.14874671]
[1644470885744,13.451,111.58,111.54,0.024]
[1644470885944,13.451,111.58,111.53,40.14874671]
[1644470886544,14.72884814,111.58,111.53,40.14874671]
[1644470890045,13.451,111.58,111.53,40.14874671]
[1644470891067,13.451,111.58,111.53,0.024]
[1644470891246,14.72884814,111.58,111.52,13.5747]
[1644470891450,14.72884814,111.58,111.52,13.5507]
[1644470892047,35.60975067,111.57,111.52,13.5507]
[1644470892249,13.456,111.56,111.52,13.5507]
[1644470892448,21.039,111.56,111.52,13.5507]
[1644470894248,35.00770742,111.55,111.52,13.5507]
[1644470894448,13.456,111.55,111.52,13.5507]
[1644470894648,3.03,111.54,111.52,13.5507]
[1644470894948,6.06219997,111.54,111.52,13.5507]
[1644470901956,6.06219997,111.54,111.5,0.024]
[1644470902157,19.51869997,111.54,111.47,0.024]
[1644470902358,24.6294,111.53,111.47,0.024]
[1644470902556,24.6294,111.53,111.45,0.024]
[1644470902757,24.6294,111.53,111.43,24.215]
[1644470902956,25.22889387,111.52,111.44,37.91310624]
[1644470903156,25.22889387,111.52,111.45,0.024]
[1644470903757,38.69009387,111.52,111.45,0.024]
[1644470906382,13.4612,111.52,111.45,13.4839]
[1644470906581,38.0872,111.53,111.46,0.024]
[1644470906982,38.0872,111.53,111.46,1.83480917]
[1644470907185,38.0872,111.53,111.47,0.024]
[1644470907383,74.61993539,111.53,111.47,39.16323367]
[1644470907782,74.61993539,111.53,111.47,39.41323367]
[1644470908782,74.61993539,111.53,111.47,52.87083367]
[1644470909886,38.0872,111.53,111.47,52.87083367]
[1644470911086,27.03589051,111.52,111.47,39.16323367]
[1644470911286,13.4601,111.51,111.47,0.024]
[1644470911487,13.4601,111.51,111.45,24.0218]
[1644470911689,13.4601,111.51,111.45,24.2718]
[1644470912088,13.4601,111.51,111.45,24.0218]
[1644470912490,13.4601,111.51,111.46,38.33009923]
[1644470912711,24.6294,111.53,111.46,38.35409923]
[1644470912891,13.4591,111.52,111.47,0.024]
[1644470915096,24.21529492,111.51,111.47,0.024]
[1644470915397,37.67509492,111.51,111.47,0.024]
[1644470915699,37.67509492,111.51,111.47,6.024]
[1644470915897,37.67509492,111.51,111.47,0.024]
[1644470916298,13.4598,111.51,111.47,0.024]
[1644470917901,24.6294,111.53,111.47,0.024]
[1644470918904,70.04297315,111.53,111.47,0.024]
[1644470919701,83.50057315,111.53,111.47,13.4819]
[1644470921407,83.50057315,111.53,111.47,0.024]
[1644470921605,84.77842129,111.53,111.47,0.024]
[1644470923607,83.50057315,111.53,111.47,0.024]
[1644470923807,84.77842129,111.53,111.47,0.024]
[1644470927433,84.77842129,111.53,111.47,42.75152581]
[1644470927836,83.50057315,111.53,111.47,42.75152581]
[1644470928434,84.77842129,111.53,111.47,42.75152581]
[1644470933141,84.77842129,111.53,111.47,56.21012581]
[1644470934340,39.36484814,111.53,111.47,56.21012581]
[1644470934541,1.27784814,111.53,111.47,58.27093498]
[1644470934743,14.73384814,111.54,111.47,70.73093498]
[1644470934941,14.73384814,111.54,111.48,0.024]
[1644470935144,14.73384814,111.54,111.48,13.4805]
[1644470935342,14.73384814,111.54,111.49,38.79363278]
[1644470935550,14.73384814,111.54,111.49,38.81763278]
[1644470935745,14.73384814,111.54,111.49,0.024]
[1644470935945,23.7594,111.53,111.49,0.024]
[1644470936154,13.4586,111.52,111.47,13.4582]
[1644470936645,37.52900751,111.52,111.47,13.4582]
[1644470936845,37.52900751,111.52,111.47,13.4822]
[1644470937948,37.52900751,111.52,111.47,0.024]
[1644470938146,48.80385565,111.52,111.47,0.024]
[1644470939953,48.80385565,111.52,111.45,1.81080917]
[1644470940151,1.27784814,111.5,111.43,1.81080917]
[1644470940350,62.23720981,111.52,111.4,23.2922]
[1644470940351,13.4657,111.48,111.4,23.2922]
[1644470940550,24.0712,111.47,111.41,6.0]
[1644470940953,24.0712,111.47,111.42,45.16200948]
[1644470941853,13.4668,111.46,111.42,45.16200948]
[1644470944252,13.4668,111.46,111.41,6.0]
[1644470944653,24.0712,111.47,111.41,6.0]
[1644470944853,24.0712,111.47,111.41,19.4642]
[1644470945654,8.089,111.49,111.42,36.66824628]
[1644470945854,8.089,111.49,111.44,13.4608]
[1644470946254,8.089,111.49,111.44,13.7108]
[1644470946955,8.089,111.49,111.45,6.0]
[1644470948759,21.5512,111.49,111.44,13.4608]
[1644470949157,21.5512,111.49,111.42,36.66824628]
[1644470949557,21.5512,111.49,111.42,36.91824628]
[1644470952757,21.5512,111.49,111.42,50.38274628]
[1644470953558,21.5512,111.49,111.42,13.7145]
[1644470954758,21.5512,111.49,111.43,46.45392166]
[1644470955763,21.5512,111.49,111.43,46.47792166]
[1644470963197,21.5512,111.49,111.43,60.19122166]
[1644470963600,21.5512,111.49,111.43,60.16722166]
[1644470965202,21.5512,111.49,111.43,60.19122166]
[1644470965402,8.089,111.49,111.43,60.19122166]
[1644470966505,8.089,111.49,111.43,89.41272566]
[1644470967511,8.089,111.49,111.45,13.4588]
[1644470967708,8.089,111.49,111.45,13.7088]
[1644470975913,14.73694814,111.52,111.45,13.7088]
[1644470976112,13.4591,111.52,111.47,13.4582]
[1644470976312,25.92544814,111.53,111.47,13.7082]
[1644470976313,1.27784814,111.53,111.47,13.7082]
[1644470976512,1.27784814,111.54,111.47,13.7082]
[1644470976913,1.27784814,111.55,111.48,6.0]
[1644470977112,1.27784814,111.55,111.49,37.43672256]
[1644470977335,1.27784814,111.55,111.49,37.68672256]
[1644470978613,1.27784814,111.56,111.49,37.68672256]
[1644470978814,14.73174814,111.56,111.5,13.4533]
[1644470979212,14.73174814,111.56,111.5,13.7033]
[1644470982017,1.27784814,111.56,111.5,13.7033]
[1644470982418,13.4526,111.57,111.5,13.7033]
[1644470982419,14.73044814,111.57,111.5,13.7033]
[1644470985746,14.73044814,111.57,111.5,42.906458]
[1644470986547,1.27784814,111.57,111.5,42.906458]
[1644470987648,1.27784814,111.56,111.5,42.906458]
[1644470987846,13.4549,111.55,111.5,42.906458]
[1644470988849,13.4549,111.55,111.5,29.453158]
[1644470989347,36.66960479,111.55,111.5,29.453158]
[1644470989947,13.4549,111.55,111.5,29.453158]
[1644470993350,14.73274814,111.55,111.5,29.453158]
[1644470993549,1.27784814,111.55,111.5,29.453158]
[1644470993757,14.73174814,111.56,111.5,42.907558]
[1644470996252,1.27784814,111.55,111.5,42.907558]
[1644470999155,14.73254814,111.55,111.5,42.907558]
[1644471003760,1.27784814,111.55,111.5,42.907558]
[1644471005363,1.27784814,111.54,111.5,42.907558]
[1644471009068,39.2614508,111.53,111.5,42.907558]
[1644471009269,78.5229016,111.53,111.5,42.907558]
[1644471009568,6.06219997,111.52,111.5,42.907558]
[1644471010069,78.5229016,111.53,111.5,42.907558]
[1644471013268,6.06219997,111.52,111.5,42.907558]
[1644471014171,39.2614508,111.53,111.5,42.907558]
[1644471014368,39.2614508,111.52,111.5,42.907558]
[1644471014770,39.2614508,111.51,111.5,42.907558]
[1644471019674,78.5229016,111.51,111.5,42.907558]
[1644471019876,81.5529016,111.51,111.5,42.907558]
[1644471020675,84.58510157,111.51,111.5,42.907558]
[1644471020878,84.58510157,111.51,111.5,29.453158]
[1644471021475,84.58510157,111.51,111.5,29.203158]
[1644471021676,84.58510157,111.51,111.47,0.024]
[1644471021877,85.86294971,111.51,111.44,0.024]
[1644471022078,24.8043,111.5,111.45,13.4602]
[1644471022475,39.2614508,111.46,111.45,13.4602]
[1644471022675,39.2614508,111.46,111.45,49.54991035]
[1644471023277,39.2614508,111.46,111.45,49.79991035]
[1644471024978,78.5229016,111.46,111.45,49.79991035]
[1644471028780,9.72086863,111.46,111.45,49.79991035]
[1644471029182,9.72086863,111.46,111.45,55.79991035]
[1644471029984,67.00752373,111.52,111.45,55.79991035]
[1644471030182,67.00752373,111.52,111.47,13.4574]
[1644471030382,9.72086863,111.48,111.47,58.97015888]
[1644471030681,9.72086863,111.48,111.47,59.22015888]
[1644471042194,0.33383162,111.48,111.47,59.22015888]
[1644471042393,22.9673,111.52,111.47,59.22015888]
[1644471042593,0.33383162,111.48,111.47,65.22015888]
[1644471042994,22.9673,111.52,111.47,65.22015888]
[1644471043196,14.73364814,111.54,111.47,65.22015888]
[1644471043393,37.09102563,111.55,111.47,101.89675888]
[1644471043394,1.27784814,111.55,111.47,101.89675888]
[1644471043595,1.31538679,111.56,111.48,6.0]
[1644471043893,1.31538679,111.56,111.5,13.4513]
[1644471044093,0.03753865,111.56,111.51,12.46]
[1644471044294,0.03753865,111.57,111.52,39.72688143]
[1644471044493,1.27784814,111.59,111.53,12.46]
[1644471044694,0.03753865,111.57,111.54,45.51275888]
[1644471044994,1.31538679,111.59,111.54,57.97275888]
[1644471045295,1.31538679,111.6,111.54,58.22275888]
[1644471045494,54.28341327,111.61,111.54,58.22275888]
[1644471045797,1.27784814,111.6,111.54,71.67035888]
[1644471047595,54.28341327,111.61,111.54,71.67035888]
[1644471050902,14.76388679,111.61,111.54,71.67035888]
[1644471051300,13.48603865,111.61,111.54,71.67035888]
[1644471051901,0.03753865,111.61,111.54,71.67035888]
[1644471058406,0.03753865,111.61,111.54,95.87195888]
[1644471061613,0.03753865,111.61,111.56,13.4442]
[1644471061810,0.03753865,111.62,111.57,18.46]
[1644471062210,0.03753865,111.62,111.57,18.71]
[1644471062413,0.03753865,111.62,111.58,39.72688143]
[1644471062813,0.03753865,111.62,111.58,39.97688143]
[1644471063215,0.03753865,111.62,111.58,53.42008143]
[1644471065837,0.03753865,111.62,111.58,53.17008143]
[1644471066239,44.7972284,111.62,111.58,53.17008143]
[1644471067340,0.03753865,111.62,111.58,53.17008143]
[1644471068942,0.03753865,111.62,111.58,13.4432]
[1644471069848,0.03753865,111.62,111.58,13.6932]
[1644471070048,0.03753865,111.62,111.58,13.4432]
[1644471071349,1.31538679,111.62,111.58,13.4432]
[1644471072753,1.31538679,111.62,111.58,52.26774136]
[1644471073352,1.27784814,111.61,111.58,52.26774136]
[1644471073853,3.03,111.6,111.58,52.26774136]
[1644471074554,1.27784814,111.61,111.58,52.26774136]
[1644471075055,1.27784814,111.61,111.58,13.4432]
[1644471076157,1.27784814,111.6,111.58,13.4432]
[1644471079658,1.27784814,111.61,111.58,13.6932]
[1644471082062,1.27784814,111.61,111.59,45.11246101]
[1644471082263,1.27784814,111.61,111.59,58.80726101]
[1644471082464,1.31538679,111.62,111.59,58.80726101]
[1644471082664,1.27784814,111.62,111.59,58.80726101]
[1644471082866,26.13574814,111.63,111.59,58.80726101]
[1644471085966,1.27784814,111.63,111.59,58.80726101]
[1644471087664,1.31538679,111.64,111.59,58.80726101]
[1644471087865,1.27784814,111.64,111.59,58.80726101]
[1644471088469,1.27784814,111.63,111.59,58.80726101]
[1644471089996,1.31538679,111.64,111.59,58.80726101]
[1644471090192,1.27784814,111.63,111.59,58.80726101]
[1644471094499,1.31538679,111.64,111.59,58.80726101]
[1644471094698,1.27784814,111.64,111.59,58.80726101]
[1644471094897,1.27784814,111.63,111.59,58.80726101]
[1644471100206,1.31538679,111.64,111.59,58.80726101]
[1644471100404,1.27784814,111.64,111.59,58.80726101]
[1644471101808,1.27784814,111.63,111.59,58.80726101]
[1644471103611,1.31538679,111.64,111.59,58.80726101]
[1644471103810,23.93768679,111.65,111.6,6.0]
[1644471104012,1.27784814,111.65,111.61,13.439]
[1644471104210,1.27784814,111.65,111.61,53.8161793]
[1644471104411,1.31538679,111.66,111.63,35.95107533]
[1644471104610,1.27784814,111.66,111.63,35.95107533]
[1644471104812,1.27784814,111.66,111.63,36.20107533]
[1644471105212,1.27784814,111.67,111.64,6.0]
[1644471105411,1.27784814,111.67,111.65,38.37271062]
[1644471105611,1.27784814,111.68,111.65,38.37271062]
[1644471105812,1.27784814,111.68,111.65,38.62271062]
[1644471106717,1.27784814,111.68,111.65,52.05841062]
[1644471108418,1.27784814,111.69,111.65,52.05841062]
[1644471109046,1.27784814,111.68,111.65,52.05841062]
[1644471109740,1.27784814,111.69,111.65,52.05841062]
[1644471111542,24.94443865,111.71,111.65,53.86470968]
[1644471111543,1.27784814,111.7,111.65,53.86470968]
[1644471111742,1.27784814,111.7,111.67,48.99521467]
[1644471113844,1.27784814,111.71,111.67,48.99521467]
[1644471114045,1.27784814,111.71,111.67,49.24521467]
[1644471117153,1.31538679,111.72,111.67,49.24521467]
[1644471117350,1.27784814,111.72,111.67,49.24521467]
[1644471117550,1.31538679,111.72,111.67,49.24521467]
[1644471119052,1.31538679,111.72,111.67,51.05151373]
[1644471120054,0.03753865,111.72,111.67,51.05151373]
[1644471120255,1.27784814,111.72,111.67,73.63311373]
[1644471120454,1.31538679,111.72,111.67,73.63311373]
[1644471120754,0.03753865,111.72,111.67,73.63311373]
[1644471120954,1.27784814,111.73,111.67,73.63311373]
[1644471123756,1.27784814,111.72,111.67,73.63311373]
[1644471123965,1.31538679,111.72,111.67,73.63311373]
[1644471124157,0.03753865,111.72,111.67,73.63311373]
[1644471124357,1.27784814,111.73,111.67,73.63311373]
[1644471124959,41.90580407,111.72,111.67,50.80151373]
[1644471125159,41.94334272,111.72,111.67,35.56251467]
[1644471125364,43.22119086,111.72,111.66,19.4351]
[1644471125958,43.22119086,111.72,111.66,6.0]
[1644471126159,56.65569086,111.72,111.66,6.0]
[1644471126360,1.27784814,111.71,111.66,47.39544778]
[1644471126562,39.9394096,111.7,111.66,47.39544778]
[1644471126959,39.9394096,111.7,111.65,13.436]
[1644471128161,39.9394096,111.7,111.65,13.686]
[1644471128362,41.21725774,111.7,111.65,13.686]
[1644471128764,54.65445774,111.7,111.65,13.686]
[1644471128964,54.65445774,111.7,111.66,38.75922375]
[1644471129565,54.65445774,111.7,111.64,13.4374]
[1644471129863,1.27784814,111.69,111.64,13.6874]
[1644471130064,14.75358679,111.69,111.64,13.6874]
[1644471130463,37.80398679,111.69,111.64,50.02096586]
[1644471130966,39.01014042,111.68,111.64,50.02096586]
[1644471131563,24.36578679,111.69,111.64,50.02096586]
[1644471134894,24.36578679,111.69,111.64,64.28726492]
[1644471137873,1.31538679,111.69,111.64,64.28726492]
[1644471138274,1.31538679,111.69,111.64,51.57726492]
[1644471138672,24.27738679,111.69,111.64,51.57726492]
[1644471139679,24.27738679,111.69,111.64,51.82726492]
[1644471146000,24.27738679,111.69,111.64,50.02096586]
[1644471146401,24.27738679,111.69,111.64,13.6874]
[1644471146604,1.27784814,111.68,111.64,13.6874]
[1644471147809,24.27738679,111.69,111.65,39.83829691]
[1644471148006,24.23984814,111.69,111.66,13.4357]
[1644471148603,6.06219997,111.68,111.66,13.4357]
[1644471149506,7.34004811,111.68,111.66,13.4357]
[1644471150306,6.06219997,111.68,111.66,13.4357]
[1644471150506,7.34004811,111.68,111.66,13.4357]
[1644471151807,7.34004811,111.68,111.65,13.4365]
[1644471152210,7.34004811,111.68,111.65,13.6865]
[1644471155114,45.87054888,111.68,111.65,13.6865]
[1644471155316,45.87054888,111.68,111.65,13.4365]
[1644471155515,45.87054888,111.68,111.62,1.80629906]
[1644471155714,45.87054888,111.68,111.58,39.19448555]
[1644471155715,26.24094814,111.67,111.6,36.5871]
[1644471155914,26.24094814,111.67,111.6,24.1271]
[1644471155915,26.27848679,111.67,111.6,24.1271]
[1644471156216,39.81483378,111.66,111.6,69.16072726]
[1644471157016,39.81483378,111.66,111.6,69.41072726]
[1644471157214,39.81483378,111.66,111.62,13.4399]
[1644471157415,39.81483378,111.66,111.6,45.28362726]
[1644471157819,1.27784814,111.65,111.6,45.28362726]
[1644471158116,39.81483378,111.66,111.6,45.28362726]
[1644471159721,53.25703378,111.66,111.6,58.72612726]
[1644471168230,53.25703378,111.66,111.6,0.25]
[1644471168530,53.25703378,111.66,111.59,36.2231]
[1644471168729,23.6778,111.65,111.59,36.2231]
[1644471168929,37.1206,111.65,111.59,38.02939906]
[1644471169330,34.86255784,111.64,111.59,73.36863657]
[1644471169932,34.86255784,111.64,111.59,38.02939906]
[1644471171033,34.86255784,111.64,111.59,78.48646083]
[1644471171634,37.1206,111.65,111.59,78.48646083]
[1644471172137,23.6778,111.65,111.59,78.48646083]
[1644471175137,37.1203,111.65,111.59,78.48646083]
[1644471175537,45.03216707,111.64,111.59,78.48646083]
[1644471177258,37.1203,111.65,111.59,78.48646083]
[1644471178358,77.2572507,111.65,111.59,78.48646083]
[1644471180460,78.53509884,111.65,111.59,55.95686083]
[1644471180860,78.53509884,111.65,111.59,1.80629906]
[1644471181061,78.53509884,111.65,111.55,12.46]
[1644471181260,1.27784814,111.64,111.53,1.27218555]
[1644471181460,13.4485,111.61,111.52,80.3397]
[1644471181764,66.15191825,111.6,111.54,36.16283565]
[1644471181961,66.15191825,111.6,111.55,13.4481]
[1644471182559,66.15191825,111.6,111.55,13.6981]
[1644471182759,66.15191825,111.6,111.56,39.85193235]
[1644471183262,66.15191825,111.6,111.56,40.10193235]
[1644471183663,66.15191825,111.6,111.56,0.25]
[1644471183863,66.15191825,111.6,111.56,13.6968]
[1644471184567,79.60041825,111.6,111.56,0.25]
[1644471184767,79.60041825,111.6,111.54,58.93995615]
[1644471185669,79.60041825,111.6,111.54,36.7801]
[1644471185872,80.87826639,111.6,111.51,0.024]
[1644471186469,80.87826639,111.6,111.51,1.83029906]
[1644471186669,80.87826639,111.6,111.52,36.35209582]
[1644471187669,80.87826639,111.6,111.52,36.60209582]
[1644471188371,80.87826639,111.6,111.52,50.05349582]
[1644471189572,79.60041825,111.6,111.52,50.05349582]
[1644471190678,79.60041825,111.6,111.52,0.25]
[1644471190877,79.60041825,111.6,111.51,13.476]
[1644471191078,79.60041825,111.6,111.51,13.726]
[1644471191678,79.60041825,111.6,111.52,43.0700423]
[1644471192181,79.60041825,111.6,111.52,43.3200423]
[1644471194682,79.60041825,111.6,111.53,0.024]
[1644471205293,79.60041825,111.6,111.53,6.024]
[1644471205596,79.60041825,111.6,111.54,0.024]
[1644471208100,80.87826639,111.6,111.54,0.024]
[1644471209799,1.27784814,111.59,111.54,0.024]
[1644471210015,14.72794814,111.59,111.53,42.4489]
[1644471210214,1.27784814,111.59,111.53,42.4489]
[1644471210414,67.42976639,111.6,111.53,56.71519906]
[1644471210617,23.87854814,111.6,111.55,13.4472]
[1644471210915,22.6007,111.6,111.55,13.6972]
[1644471211513,22.6007,111.6,111.55,13.4472]
[1644471211713,42.83665801,111.59,111.54,0.024]
[1644471211913,44.11450615,111.59,111.53,0.024]
[1644471212113,23.9019,111.58,111.52,0.024]
[1644471213714,37.3531,111.58,111.52,13.4755]
[1644471214115,37.3531,111.58,111.52,13.7255]
[1644471214316,37.3531,111.58,111.52,37.2284]
[1644471214515,37.3531,111.58,111.52,49.6884]
[1644471215319,37.3531,111.58,111.52,0.024]
[1644471215517,38.63094814,111.58,111.52,0.024]
[1644471218322,38.63094814,111.58,111.52,13.4757]
[1644471219521,38.63094814,111.58,111.52,13.7257]
[1644471221825,38.63094814,111.58,111.52,13.4757]
[1644471222026,38.63094814,111.58,111.52,0.024]
[1644471222426,13.4537,111.56,111.52,0.024]
[1644471222628,13.4537,111.56,111.5,0.024]
[1644471223228,14.73154814,111.56,111.5,0.024]
[1644471223427,61.24197267,111.55,111.5,0.024]
[1644471223627,74.69737267,111.55,111.5,0.024]
[1644471235145,1.27784814,111.57,111.5,45.42077749]
[1644471235442,23.3037,111.57,111.51,0.024]
[1644471236164,69.05024569,111.57,111.51,0.024]
[1644471236745,82.50314569,111.57,111.51,13.4766]
[1644471236943,69.05024569,111.57,111.51,13.7266]
[1644471237143,69.05024569,111.57,111.51,37.2562]
[1644471237943,45.74654569,111.57,111.51,37.2562]
[1644471238145,45.74654569,111.57,111.51,39.06249906]
[1644471238545,1.27784814,111.59,111.51,39.06249906]
[1644471238744,49.05534814,111.6,111.51,39.06249906]
[1644471239645,13.4504,111.59,111.52,6.0]
[1644471239845,13.4504,111.59,111.55,37.28890726]
[1644471241955,13.4504,111.59,111.54,13.4733]
[1644471244378,109.99949244,111.6,111.54,13.4733]
[1644471244581,109.99949244,111.6,111.54,38.4185]
[1644471248385,108.7216443,111.6,111.54,38.4185]
[1644471250886,108.7216443,111.6,111.54,24.9692]
[1644471251088,108.7216443,111.6,111.54,0.024]
[1644471251287,122.45949244,111.6,111.51,23.4472]
[1644471251487,1.27784814,111.59,111.51,0.024]
[1644471251786,13.4553,111.57,111.51,0.024]
[1644471251986,38.96244814,111.57,111.48,23.2896]
[1644471252187,37.12504873,111.56,111.49,40.33135173]
[1644471252387,37.12504873,111.56,111.5,0.024]
[1644471252987,13.4558,111.55,111.5,0.024]
[1644471253191,37.1997,111.55,111.5,0.024]
[1644471254789,37.1997,111.55,111.5,13.4787]
[1644471260093,37.1997,111.55,111.51,6.0]
[1644471261992,37.1997,111.55,111.5,13.4787]
[1644471265799,37.1997,111.55,111.5,13.7287]
[1644471267602,37.1997,111.55,111.5,13.7047]
[1644471267803,37.1997,111.55,111.5,13.7287]
[1644471271006,37.1997,111.55,111.5,13.4787]
[1644471271213,37.1997,111.55,111.5,0.024]
[1644471271510,58.17654814,111.55,111.5,0.024]
[1644471271709,58.17654814,111.55,111.48,0.024]
[1644471271908,58.17654814,111.55,111.46,64.05465082]
[1644471272112,58.17654814,111.55,111.47,0.024]
[1644471272809,58.17654814,111.55,111.47,13.4819]
[1644471273008,58.17654814,111.55,111.48,0.024]
[1644471274613,65.17654814,111.55,111.48,0.024]
[1644471275513,65.17654814,111.55,111.47,0.024]
[1644471275713,13.4598,111.52,111.47,0.024]
[1644471276115,34.69347526,111.51,111.47,0.024]
[1644471277643,24.1307,111.53,111.47,0.024]
[1644471277844,24.1307,111.53,111.47,13.4823]
[1644471278243,24.1307,111.53,111.47,13.7323]
[1644471278745,42.80432533,111.52,111.47,13.7323]
[1644471281255,56.26242533,111.52,111.47,13.4823]
[1644471281650,56.26242533,111.52,111.47,0.024]
[1644471285952,55.76242533,111.52,111.47,0.024]
[1644471289557,24.988,111.51,111.47,0.024]
[1644471289759,53.50666134,111.5,111.45,13.7345]
[1644471291760,53.50666134,111.5,111.45,0.274]
[1644471292259,53.50666134,111.5,111.45,0.024]
[1644471292458,53.50666134,111.5,111.44,37.9868]
[1644471295963,53.50666134,111.5,111.45,39.9656723]
[1644471296190,53.50666134,111.5,111.45,40.2396723]
[1644471297063,53.50666134,111.5,111.45,53.7005723]
[1644471298163,53.50666134,111.5,111.45,13.7349]
[1644471303473,40.04546134,111.5,111.45,13.7349]
[1644471305695,53.50576134,111.5,111.45,13.7349]
[1644471312803,53.50576134,111.5,111.45,0.274]
[1644471313308,53.50576134,111.5,111.45,0.024]
[1644471313509,53.50576134,111.5,111.44,86.24660664]
[1644471317206,53.50576134,111.5,111.44,37.9867]
[1644471318308,53.50576134,111.5,111.44,83.74827257]
[1644471319609,53.50576134,111.5,111.44,37.9867]
[1644471319811,54.78360948,111.5,111.44,37.9867]
[1644471320412,53.50576134,111.5,111.44,37.9867]
[1644471322215,1.27784814,111.49,111.44,0.024]
[1644471322413,14.74344814,111.48,111.41,0.024]
[1644471322814,1.27784814,111.47,111.41,0.024]
[1644471323016,35.4912221,111.46,111.39,0.024]
[1644471323214,60.51157024,111.46,111.39,0.024]
[1644471323617,59.2337221,111.46,111.39,0.024]
[1644471323814,72.7017221,111.46,111.39,0.024]
[1644471324817,72.7017221,111.46,111.37,0.024]
[1644471326216,83.4747221,111.46,111.37,0.024]
[1644471327120,91.75257024,111.46,111.37,0.024]
[1644471328920,91.75257024,111.46,111.36,0.024]
[1644471329520,12.46,111.45,111.36,0.024]
[1644471329720,13.4725,111.43,111.36,0.024]
[1644471329943,62.37511389,111.42,111.36,0.024]
[1644471331824,43.81905741,111.4,111.36,0.024]
[1644471334126,43.81905741,111.4,111.35,73.63917366]
[1644471334328,43.81905741,111.4,111.35,73.66317366]
[1644471334626,43.81905741,111.4,111.35,37.2171]
[1644471335428,43.81905741,111.4,111.35,23.7458]